[Event "Early-Titled-Tuesday-Blitz-February-06-2024"]
[Site "Chess.com"]
[Date "2024.02.06"]
[Round "4"]
[White "FMStan15"]
[Black "Louis-Paulsen-Fan"]
[Result "1-0"]
[WhiteElo "2019"]
[BlackElo "2264"]
[TimeControl "180+1"]
[EndTime "8:39:37 PST"]
[Termination "FMStan15 won on time"]

1. e4 {[%clk 0:02:56.9]} 1... Nf6 {[%clk 0:02:59.1]} 2. Nc3 {[%clk 0:02:53.3]}
2... e5 {[%clk 0:02:57.9]} 3. Nf3 {[%clk 0:02:52.7]} 3... Nc6 {[%clk 0:02:57.9]}
4. Bc4 {[%clk 0:02:52.9]} 4... Nxe4 {[%clk 0:02:57.1]} 5. Bxf7+ {[%clk
0:02:51.7]} 5... Kxf7 {[%clk 0:02:57.3]} 6. Nxe4 {[%clk 0:02:52.1]} 6... d5
{[%clk 0:02:57.3]} 7. Ng3 {[%clk 0:02:52]} 7... e4 {[%clk 0:02:55.3]} 8. Ng1
{[%clk 0:02:50.7]} 8... Bc5 {[%clk 0:02:51.3]} 9. d3 {[%clk 0:02:44.8]} 9... Re8
{[%clk 0:02:30.2]} 10. dxe4 {[%clk 0:02:42.6]} 10... dxe4 {[%clk 0:02:30.4]} 11.
Qh5+ {[%clk 0:02:41.9]} 11... Kg8 {[%clk 0:02:21.4]} 12. Qxc5 {[%clk 0:02:41.8]}
12... Nd4 {[%clk 0:02:17.4]} 13. Be3 {[%clk 0:02:31.5]} 13... Ne6 {[%clk
0:02:10.1]} 14. Qc4 {[%clk 0:02:29.6]} 14... Kh8 {[%clk 0:02:08.6]} 15. Nxe4
{[%clk 0:02:19.4]} 15... b6 {[%clk 0:02:05.2]} 16. Ne2 {[%clk 0:02:13.6]} 16...
Bb7 {[%clk 0:02:04.7]} 17. N2g3 {[%clk 0:02:11.5]} 17... Bd5 {[%clk 0:01:53]}
18. Qd3 {[%clk 0:02:08.3]} 18... h6 {[%clk 0:01:48]} 19. c4 {[%clk 0:02:03]}
19... Bb7 {[%clk 0:01:42.9]} 20. Qxd8 {[%clk 0:02:02.9]} 20... Raxd8 {[%clk
0:01:42.9]} 21. O-O {[%clk 0:02:02.2]} 21... Rd3 {[%clk 0:01:39.3]} 22. Rfd1
{[%clk 0:01:57.4]} 22... Red8 {[%clk 0:01:39.4]} 23. Rxd3 {[%clk 0:01:55.4]}
23... Rxd3 {[%clk 0:01:39.4]} 24. Rc1 {[%clk 0:01:48.4]} 24... g5 {[%clk
0:01:33.6]} 25. Kf1 {[%clk 0:01:44.6]} 25... Nf4 {[%clk 0:01:33.5]} 26. h3
{[%clk 0:01:07.6]} 26... c5 {[%clk 0:01:27]} 27. b3 {[%clk 0:00:59.2]} 27... Kg7
{[%clk 0:01:26]} 28. Nf5+ {[%clk 0:00:46.7]} 28... Kg6 {[%clk 0:01:25.8]} 29.
Ned6 {[%clk 0:00:46.9]} 29... Bc6 {[%clk 0:01:22.5]} 30. f3 {[%clk 0:00:44.1]}
30... Bd7 {[%clk 0:01:17.2]} 31. Bxf4 {[%clk 0:00:43.5]} 31... gxf4 {[%clk
0:01:16.9]} 32. Ke2 {[%clk 0:00:41.4]} 32... Bxf5 {[%clk 0:01:15.8]} 33. Nxf5
{[%clk 0:00:40.4]} 33... Rd7 {[%clk 0:01:11.3]} 34. g4 {[%clk 0:00:39.6]} 34...
fxg3 {[%clk 0:01:04.5]} 35. Nxg3 {[%clk 0:00:39.1]} 35... Kg5 {[%clk 0:01:03.5]}
36. Rg1 {[%clk 0:00:36.2]} 36... h5 {[%clk 0:00:50.8]} 37. Ne4+ {[%clk 0:00:36]}
37... Kh4 {[%clk 0:00:47.6]} 38. Kf2 {[%clk 0:00:27.2]} 38... a6 {[%clk
0:00:15]} 39. Rg5 {[%clk 0:00:26.5]} 39... Re7 {[%clk 0:00:09]} 40. Rd5 {[%clk
0:00:24.3]} 40... Rh7 {[%clk 0:00:05]} 41. a3 {[%clk 0:00:21.2]} 41... Rh8
{[%clk 0:00:03.4]} 42. Ng5 {[%clk 0:00:19.5]} 42... Rg8 {[%clk 0:00:01.6]} 43.
f4 {[%clk 0:00:19.4]} 1-0

[Event "Early-Titled-Tuesday-Blitz-February-06-2024"]
[Site "Chess.com"]
[Date "2024.02.06"]
[Round "4"]
[White "DenLaz"]
[Black "Willhaven3"]
[Result "1-0"]
[WhiteElo "3053"]
[BlackElo "2627"]
[TimeControl "180+1"]
[EndTime "8:39:38 PST"]
[Termination "DenLaz won by resignation"]

1. d4 {[%clk 0:03:00.9]} 1... Nf6 {[%clk 0:02:59.6]} 2. c4 {[%clk 0:03:01.6]}
2... e6 {[%clk 0:02:59.7]} 3. Nf3 {[%clk 0:03:02.2]} 3... d5 {[%clk 0:02:59.4]}
4. g3 {[%clk 0:03:02]} 4... Be7 {[%clk 0:02:57.7]} 5. Bg2 {[%clk 0:03:02.3]}
5... Ne4 {[%clk 0:02:57.9]} 6. O-O {[%clk 0:03:02.6]} 6... f5 {[%clk 0:02:57.9]}
7. Nc3 {[%clk 0:03:02.6]} 7... O-O {[%clk 0:02:54.1]} 8. Qc2 {[%clk 0:03:00.7]}
8... c6 {[%clk 0:02:51]} 9. Rb1 {[%clk 0:03:00.7]} 9... a5 {[%clk 0:02:50.2]}
10. a3 {[%clk 0:03:00.2]} 10... Bf6 {[%clk 0:02:35]} 11. b4 {[%clk 0:02:57.3]}
11... axb4 {[%clk 0:02:34.2]} 12. axb4 {[%clk 0:02:58.2]} 12... Nd7 {[%clk
0:02:25]} 13. b5 {[%clk 0:02:38]} 13... Nxc3 {[%clk 0:01:40]} 14. Qxc3 {[%clk
0:02:37.4]} 14... Nb6 {[%clk 0:01:40]} 15. c5 {[%clk 0:02:32.2]} 15... Nc4
{[%clk 0:01:32.9]} 16. Bf4 {[%clk 0:02:31.8]} 16... Ra3 {[%clk 0:01:18.2]} 17.
Qc1 {[%clk 0:02:30.3]} 17... Ra2 {[%clk 0:01:10.8]} 18. Re1 {[%clk 0:02:29.3]}
18... Na3 {[%clk 0:00:49.5]} 19. bxc6 {[%clk 0:02:21.3]} 19... bxc6 {[%clk
0:00:37.2]} 20. Rb8 {[%clk 0:02:17.2]} 20... Qa5 {[%clk 0:00:35]} 21. e3 {[%clk
0:01:29.9]} 21... Nb5 {[%clk 0:00:30.1]} 22. Bf1 {[%clk 0:01:27]} 22... Nc3
{[%clk 0:00:28.8]} 23. Rb2 {[%clk 0:01:24.7]} 23... Ne4 {[%clk 0:00:28.2]} 24.
Rxa2 {[%clk 0:01:17.1]} 24... Qxa2 {[%clk 0:00:29.1]} 25. Re2 {[%clk 0:01:17.7]}
25... Qa5 {[%clk 0:00:28.1]} 26. Rc2 {[%clk 0:01:14.3]} 26... Ba6 {[%clk
0:00:27]} 27. Bxa6 {[%clk 0:01:10.1]} 27... Qxa6 {[%clk 0:00:27.9]} 28. Kg2
{[%clk 0:01:10.6]} 28... Ra8 {[%clk 0:00:27.2]} 29. Rb2 {[%clk 0:01:09.5]} 29...
Qd3 {[%clk 0:00:25.6]} 30. Qc2 {[%clk 0:01:04.3]} 30... Qa3 {[%clk 0:00:23.7]}
31. Be5 {[%clk 0:01:01.8]} 31... Be7 {[%clk 0:00:22.3]} 32. Rb7 {[%clk
0:00:56.1]} 32... Bf8 {[%clk 0:00:22.3]} 33. Bf4 {[%clk 0:00:55.8]} 33... Qa1
{[%clk 0:00:21.6]} 34. Rb2 {[%clk 0:00:53.7]} 34... Qa3 {[%clk 0:00:21.1]} 35.
Ne5 {[%clk 0:00:53.4]} 35... Rc8 {[%clk 0:00:18.9]} 36. Nd3 {[%clk 0:00:51.3]}
36... Qa1 {[%clk 0:00:18.1]} 37. Ra2 {[%clk 0:00:50.6]} 37... Qc3 {[%clk
0:00:11]} 38. Qxc3 {[%clk 0:00:50.9]} 38... Nxc3 {[%clk 0:00:11.9]} 39. Ra6
{[%clk 0:00:51.3]} 39... Nb5 {[%clk 0:00:11.9]} 40. Ne5 {[%clk 0:00:51]} 40...
h6 {[%clk 0:00:08.9]} 41. Nxc6 {[%clk 0:00:49.5]} 41... g5 {[%clk 0:00:08.8]}
42. Be5 {[%clk 0:00:50.1]} 42... Nc3 {[%clk 0:00:08]} 43. Na7 {[%clk 0:00:42.6]}
43... Ra8 {[%clk 0:00:07.6]} 44. c6 {[%clk 0:00:43.2]} 44... Nb5 {[%clk
0:00:07.2]} 45. c7 {[%clk 0:00:41.3]} 45... Nxc7 {[%clk 0:00:04.3]} 46. Bxc7
{[%clk 0:00:41.1]} 46... Be7 {[%clk 0:00:04.6]} 47. Ra5 {[%clk 0:00:39.7]} 47...
Kf7 {[%clk 0:00:03.8]} 48. Nc6 {[%clk 0:00:40.2]} 48... Rxa5 {[%clk 0:00:03.8]}
49. Bxa5 {[%clk 0:00:40.4]} 49... Bb4 {[%clk 0:00:04.7]} 50. Bxb4 {[%clk
0:00:40.6]} 1-0

[Event "Early-Titled-Tuesday-Blitz-February-06-2024"]
[Site "Chess.com"]
[Date "2024.02.06"]
[Round "4"]
[White "secrethawk1"]
[Black "traviscottofficial"]
[Result "1-0"]
[WhiteElo "2505"]
[BlackElo "2690"]
[TimeControl "180+1"]
[EndTime "8:39:38 PST"]
[Termination "secrethawk1 won by resignation"]

1. e4 {[%clk 0:03:00.9]} 1... c5 {[%clk 0:02:59.7]} 2. Nf3 {[%clk 0:02:57.1]}
2... g6 {[%clk 0:02:59.7]} 3. d4 {[%clk 0:02:50.9]} 3... cxd4 {[%clk 0:03:00]}
4. Nxd4 {[%clk 0:02:51.8]} 4... Bg7 {[%clk 0:03:00.1]} 5. c4 {[%clk 0:02:49.2]}
5... Nc6 {[%clk 0:02:58.7]} 6. Be3 {[%clk 0:02:46.2]} 6... Nf6 {[%clk
0:02:55.3]} 7. Nc3 {[%clk 0:02:44.6]} 7... O-O {[%clk 0:02:55.3]} 8. Be2 {[%clk
0:02:42]} 8... d6 {[%clk 0:02:53]} 9. O-O {[%clk 0:02:40.4]} 9... Bd7 {[%clk
0:02:51.7]} 10. Qd2 {[%clk 0:02:36.1]} 10... Rc8 {[%clk 0:02:46.1]} 11. Rac1
{[%clk 0:02:22.4]} 11... Re8 {[%clk 0:02:42.8]} 12. Rfd1 {[%clk 0:02:19.2]}
12... Ng4 {[%clk 0:02:37.6]} 13. Nxc6 {[%clk 0:02:15.1]} 13... Rxc6 {[%clk
0:02:32.5]} 14. Bd4 {[%clk 0:02:00.9]} 14... Nf6 {[%clk 0:02:19.2]} 15. Bd3
{[%clk 0:01:47]} 15... b6 {[%clk 0:02:10.8]} 16. Nd5 {[%clk 0:01:35.8]} 16... e5
{[%clk 0:01:54.5]} 17. Nxf6+ {[%clk 0:01:30.4]} 17... Bxf6 {[%clk 0:01:49.1]}
18. Be3 {[%clk 0:01:28.8]} 18... Be7 {[%clk 0:01:40.5]} 19. b3 {[%clk
0:01:18.3]} 19... f5 {[%clk 0:01:33.3]} 20. f4 {[%clk 0:01:06.1]} 20... Bf6
{[%clk 0:01:13.4]} 21. exf5 {[%clk 0:01:03.4]} 21... e4 {[%clk 0:01:04.6]} 22.
Bxe4 {[%clk 0:00:56.1]} 22... Rxe4 {[%clk 0:00:32.1]} 23. Qd5+ {[%clk 0:00:54]}
23... Kg7 {[%clk 0:00:30.2]} 24. Qxe4 {[%clk 0:00:53.3]} 24... gxf5 {[%clk
0:00:29.7]} 25. Qf3 {[%clk 0:00:48.6]} 25... Qe8 {[%clk 0:00:24.6]} 26. Bd4
{[%clk 0:00:41]} 26... Qe4 {[%clk 0:00:19.8]} 27. Qc3 {[%clk 0:00:21.7]} 27...
d5 {[%clk 0:00:14.3]} 28. Bxf6+ {[%clk 0:00:21.4]} 28... Rxf6 {[%clk 0:00:15]}
29. Rxd5 {[%clk 0:00:21.2]} 29... Bc6 {[%clk 0:00:15.5]} 30. Re1 {[%clk
0:00:21]} 30... Qxf4 {[%clk 0:00:13.4]} 31. Rd3 {[%clk 0:00:16.1]} 31... Kf7
{[%clk 0:00:11.4]} 32. Rde3 {[%clk 0:00:14.3]} 32... Qg4 {[%clk 0:00:08.6]} 33.
Re7+ {[%clk 0:00:11.9]} 33... Kg6 {[%clk 0:00:08.9]} 34. Qxf6+ {[%clk
0:00:09.2]} 34... Kxf6 {[%clk 0:00:09.1]} 35. R1e6+ {[%clk 0:00:09.3]} 35... Kg5
{[%clk 0:00:09.7]} 36. Rg7+ {[%clk 0:00:09.6]} 1-0

[Event "Early-Titled-Tuesday-Blitz-February-06-2024"]
[Site "Chess.com"]
[Date "2024.02.06"]
[Round "4"]
[White "N_I_Chess"]
[Black "malakismayil"]
[Result "1-0"]
[WhiteElo "2346"]
[BlackElo "2489"]
[TimeControl "180+1"]
[EndTime "8:39:39 PST"]
[Termination "N_I_Chess won on time"]

1. d4 {[%clk 0:03:00.9]} 1... d5 {[%clk 0:02:49.7]} 2. c4 {[%clk 0:03:00.5]}
2... Nf6 {[%clk 0:02:49.4]} 3. cxd5 {[%clk 0:02:57.2]} 3... Nxd5 {[%clk
0:02:49.5]} 4. Nf3 {[%clk 0:02:57]} 4... Nc6 {[%clk 0:02:46.4]} 5. Bg5 {[%clk
0:02:33.1]} 5... h6 {[%clk 0:02:42.6]} 6. Bh4 {[%clk 0:02:31.3]} 6... g5 {[%clk
0:02:41.8]} 7. Bg3 {[%clk 0:02:31.5]} 7... e6 {[%clk 0:02:42.4]} 8. e3 {[%clk
0:02:27.4]} 8... Bb4+ {[%clk 0:02:38.9]} 9. Nbd2 {[%clk 0:02:25.4]} 9... Qe7
{[%clk 0:02:26.3]} 10. Bb5 {[%clk 0:02:14.9]} 10... Bd7 {[%clk 0:01:56.7]} 11.
a3 {[%clk 0:01:49.7]} 11... Ba5 {[%clk 0:01:32.5]} 12. b4 {[%clk 0:01:14.7]}
12... Bxb4 {[%clk 0:00:53.5]} 13. axb4 {[%clk 0:01:11.7]} 13... Nc3 {[%clk
0:00:53.8]} 14. Bxc6 {[%clk 0:01:00.3]} 14... Nxd1 {[%clk 0:00:52.5]} 15. Bxd7+
{[%clk 0:00:57.8]} 15... Qxd7 {[%clk 0:00:53]} 16. Rxd1 {[%clk 0:00:43.2]} 16...
f6 {[%clk 0:00:40.1]} 17. O-O {[%clk 0:00:39.7]} 17... c6 {[%clk 0:00:34.6]} 18.
Ne4 {[%clk 0:00:37.8]} 18... Kf7 {[%clk 0:00:30.2]} 19. Nd6+ {[%clk 0:00:20.6]}
19... Kg7 {[%clk 0:00:28.3]} 20. e4 {[%clk 0:00:20.2]} 20... h5 {[%clk
0:00:27.2]} 21. h4 {[%clk 0:00:17.4]} 21... g4 {[%clk 0:00:21.2]} 22. Ne1 {[%clk
0:00:16.3]} 22... Rad8 {[%clk 0:00:20.4]} 23. e5 {[%clk 0:00:15.9]} 23... f5
{[%clk 0:00:19.3]} 24. Nd3 {[%clk 0:00:15.9]} 24... Qe7 {[%clk 0:00:12.9]} 25.
Bf4 {[%clk 0:00:13.1]} 25... Rd7 {[%clk 0:00:08.1]} 26. Bg5 {[%clk 0:00:13.1]}
26... Qf8 {[%clk 0:00:08.4]} 27. Bf6+ {[%clk 0:00:13]} 27... Kg8 {[%clk
0:00:08.8]} 28. Nf4 {[%clk 0:00:13.3]} 28... Rhh7 {[%clk 0:00:07.2]} 29. Nxe6
{[%clk 0:00:13.4]} 29... Qb8 {[%clk 0:00:03.9]} 30. Ng5 {[%clk 0:00:12.4]} 30...
Rh6 {[%clk 0:00:03.6]} 31. Nxf5 {[%clk 0:00:12.3]} 31... Rg6 {[%clk 0:00:02.8]}
32. e6 {[%clk 0:00:09.6]} 32... Rd5 {[%clk 0:00:02.5]} 33. Be5 {[%clk
0:00:09.7]} 33... Rxe5 {[%clk 0:00:02.1]} 34. dxe5 {[%clk 0:00:10.6]} 34... Qxe5
{[%clk 0:00:02.5]} 35. Ne7+ {[%clk 0:00:11.2]} 35... Kg7 {[%clk 0:00:01.7]} 36.
Nxg6 {[%clk 0:00:12.1]} 36... Kxg6 {[%clk 0:00:02.6]} 37. Rfe1 {[%clk
0:00:12.3]} 1-0

[Event "Early-Titled-Tuesday-Blitz-February-06-2024"]
[Site "Chess.com"]
[Date "2024.02.06"]
[Round "4"]
[White "Nick12772"]
[Black "Perecke"]
[Result "0-1"]
[WhiteElo "2390"]
[BlackElo "2599"]
[TimeControl "180+1"]
[EndTime "8:39:40 PST"]
[Termination "Perecke won on time"]

1. Nf3 {[%clk 0:03:00.9]} 1... d5 {[%clk 0:03:00.1]} 2. g3 {[%clk 0:03:01.3]}
2... g6 {[%clk 0:03:00.2]} 3. Bg2 {[%clk 0:03:01.9]} 3... Bg7 {[%clk 0:03:00.8]}
4. d4 {[%clk 0:03:02.4]} 4... Nf6 {[%clk 0:03:01.6]} 5. O-O {[%clk 0:03:02.9]}
5... O-O {[%clk 0:03:02.1]} 6. c4 {[%clk 0:03:03.6]} 6... e6 {[%clk 0:03:02.7]}
7. cxd5 {[%clk 0:03:03.1]} 7... exd5 {[%clk 0:03:03.6]} 8. Nc3 {[%clk
0:03:03.2]} 8... c6 {[%clk 0:03:04.2]} 9. Bf4 {[%clk 0:03:03.6]} 9... Re8 {[%clk
0:03:03.5]} 10. Qd2 {[%clk 0:02:54.7]} 10... Nbd7 {[%clk 0:03:03.7]} 11. Bh6
{[%clk 0:02:54.6]} 11... Nf8 {[%clk 0:03:03.6]} 12. Bxg7 {[%clk 0:02:53.9]}
12... Kxg7 {[%clk 0:03:04.5]} 13. Ne5 {[%clk 0:02:53.6]} 13... N6d7 {[%clk
0:03:04.2]} 14. Nxd7 {[%clk 0:02:52.2]} 14... Bxd7 {[%clk 0:03:04.4]} 15. e4
{[%clk 0:02:45.7]} 15... dxe4 {[%clk 0:03:04.6]} 16. Nxe4 {[%clk 0:02:46.4]}
16... Be6 {[%clk 0:03:05.1]} 17. Nc5 {[%clk 0:02:45]} 17... Rb8 {[%clk
0:03:04.8]} 18. Rfe1 {[%clk 0:02:37.1]} 18... Bd5 {[%clk 0:03:03.1]} 19. Rxe8
{[%clk 0:02:33.2]} 19... Qxe8 {[%clk 0:03:04]} 20. Bxd5 {[%clk 0:02:32.6]} 20...
cxd5 {[%clk 0:03:04.9]} 21. Re1 {[%clk 0:02:29]} 21... Qc6 {[%clk 0:03:02.6]}
22. Qf4 {[%clk 0:02:27.7]} 22... Rd8 {[%clk 0:03:00.7]} 23. Qe5+ {[%clk
0:02:17.2]} 23... Qf6 {[%clk 0:03:00.8]} 24. Nxb7 {[%clk 0:02:07.4]} 24... Qxe5
{[%clk 0:02:54.2]} 25. Rxe5 {[%clk 0:02:05.3]} 25... Rb8 {[%clk 0:02:54.4]} 26.
Nc5 {[%clk 0:01:57.9]} 26... Rxb2 {[%clk 0:02:53.5]} 27. a4 {[%clk 0:01:52.4]}
27... Ne6 {[%clk 0:02:36.8]} 28. Rxd5 {[%clk 0:01:48.9]} 28... Kf6 {[%clk
0:02:23.1]} 29. Rd7 {[%clk 0:01:37.8]} 29... Ng5 {[%clk 0:02:16.9]} 30. h4
{[%clk 0:01:27.5]} 30... Nh3+ {[%clk 0:02:17]} 31. Kg2 {[%clk 0:01:27.5]} 31...
Nxf2 {[%clk 0:02:17.9]} 32. Rxa7 {[%clk 0:01:22.9]} 32... Nd1+ {[%clk 0:02:11]}
33. Kf3 {[%clk 0:01:15.1]} 33... Rf2+ {[%clk 0:02:10.8]} 34. Ke4 {[%clk
0:01:15.2]} 34... Rg2 {[%clk 0:02:05.2]} 35. a5 {[%clk 0:01:03.9]} 35... Rxg3
{[%clk 0:02:00.6]} 36. Kd5 {[%clk 0:01:01.9]} 36... Ra3 {[%clk 0:01:54.5]} 37.
a6 {[%clk 0:00:57.7]} 37... h6 {[%clk 0:01:51]} 38. Ra8 {[%clk 0:00:57.4]} 38...
g5 {[%clk 0:01:50.6]} 39. hxg5+ {[%clk 0:00:57.2]} 39... hxg5 {[%clk 0:01:51.5]}
40. Ne4+ {[%clk 0:00:43.5]} 40... Kf5 {[%clk 0:01:49.9]} 41. Nd6+ {[%clk
0:00:44.2]} 41... Kf6 {[%clk 0:01:47]} 42. Ra7 {[%clk 0:00:39.6]} 42... g4
{[%clk 0:01:39.2]} 43. Rxf7+ {[%clk 0:00:32.4]} 43... Kg6 {[%clk 0:01:39.5]} 44.
Ra7 {[%clk 0:00:20.2]} 44... g3 {[%clk 0:01:38.9]} 45. Ra8 {[%clk 0:00:20.9]}
45... Kh7 {[%clk 0:01:36.3]} 46. Ra7+ {[%clk 0:00:16.9]} 46... Kg6 {[%clk
0:01:35.4]} 47. Ra8 {[%clk 0:00:17.5]} 47... g2 {[%clk 0:01:35.6]} 48. Rg8+
{[%clk 0:00:17.3]} 48... Kh7 {[%clk 0:01:36.2]} 49. Rxg2 {[%clk 0:00:17.3]}
49... Ne3+ {[%clk 0:01:36.5]} 50. Kc5 {[%clk 0:00:11.2]} 50... Nxg2 {[%clk
0:01:27.6]} 51. Kb6 {[%clk 0:00:11.5]} 51... Nf4 {[%clk 0:00:59.7]} 52. a7
{[%clk 0:00:11.5]} 52... Ne6 {[%clk 0:00:52.3]} 53. Nc4 {[%clk 0:00:06.1]} 53...
Ra1 {[%clk 0:00:48.8]} 54. Na5 {[%clk 0:00:06.1]} 54... Rb1+ {[%clk 0:00:40.8]}
55. Kc6 {[%clk 0:00:05.8]} 55... Nxd4+ {[%clk 0:00:39.8]} 56. Kd5 {[%clk
0:00:04.8]} 56... Nb5 {[%clk 0:00:40.3]} 0-1

[Event "Early-Titled-Tuesday-Blitz-February-06-2024"]
[Site "Chess.com"]
[Date "2024.02.06"]
[Round "4"]
[White "RamonManon0g"]
[Black "YurasovMat-2012"]
[Result "1/2-1/2"]
[WhiteElo "2413"]
[BlackElo "2649"]
[TimeControl "180+1"]
[EndTime "8:39:40 PST"]
[Termination "Game drawn - insufficient material"]

1. e4 {[%clk 0:03:00.9]} 1... e5 {[%clk 0:03:00.9]} 2. Nf3 {[%clk 0:03:00.8]}
2... Nf6 {[%clk 0:03:01.7]} 3. d4 {[%clk 0:03:00.5]} 3... d6 {[%clk 0:03:02.6]}
4. dxe5 {[%clk 0:02:57.3]} 4... Nxe4 {[%clk 0:03:02.1]} 5. Bd3 {[%clk
0:02:55.1]} 5... Nc5 {[%clk 0:03:01.8]} 6. exd6 {[%clk 0:02:54.5]} 6... Bxd6
{[%clk 0:03:02.7]} 7. Qe2+ {[%clk 0:02:51.4]} 7... Be7 {[%clk 0:03:01.9]} 8. Bc4
{[%clk 0:02:47.4]} 8... O-O {[%clk 0:03:01.1]} 9. h3 {[%clk 0:02:42.5]} 9... Re8
{[%clk 0:03:00.5]} 10. O-O {[%clk 0:02:42.5]} 10... Bf6 {[%clk 0:03:00]} 11. Qd1
{[%clk 0:02:35]} 11... Qxd1 {[%clk 0:02:57.9]} 12. Rxd1 {[%clk 0:02:34.7]} 12...
Nc6 {[%clk 0:02:58.8]} 13. Nc3 {[%clk 0:02:32.2]} 13... Bf5 {[%clk 0:02:57]} 14.
Rd5 {[%clk 0:02:24.4]} 14... Be6 {[%clk 0:02:04.5]} 15. Rxc5 {[%clk 0:02:23.9]}
15... Be7 {[%clk 0:02:04.7]} 16. Rxc6 {[%clk 0:02:19.2]} 16... bxc6 {[%clk
0:02:04.5]} 17. Bxe6 {[%clk 0:02:17.3]} 17... fxe6 {[%clk 0:02:05.4]} 18. Ne5
{[%clk 0:02:09.5]} 18... c5 {[%clk 0:02:02.6]} 19. Be3 {[%clk 0:02:08.7]} 19...
Rab8 {[%clk 0:02:02.5]} 20. Na4 {[%clk 0:02:05]} 20... Rb4 {[%clk 0:01:58.6]}
21. b3 {[%clk 0:02:04.8]} 21... Bf6 {[%clk 0:01:57.1]} 22. f4 {[%clk 0:02:03.1]}
22... g5 {[%clk 0:01:56.8]} 23. g3 {[%clk 0:01:55.3]} 23... gxf4 {[%clk
0:01:55.6]} 24. gxf4 {[%clk 0:01:51.4]} 24... Re4 {[%clk 0:01:56.2]} 25. Kf2
{[%clk 0:01:51.8]} 25... Rf8 {[%clk 0:01:53.5]} 26. Rg1+ {[%clk 0:01:47.5]}
26... Kh8 {[%clk 0:01:52.7]} 27. Nxc5 {[%clk 0:01:38.4]} 27... Rxf4+ {[%clk
0:01:24.9]} 28. Bxf4 {[%clk 0:01:27.7]} 28... Bxe5 {[%clk 0:01:24.8]} 29. Nxe6
{[%clk 0:01:07.7]} 29... Rf6 {[%clk 0:01:24.7]} 30. Re1 {[%clk 0:00:48.5]} 30...
Bxf4 {[%clk 0:01:19.4]} 31. Nxf4 {[%clk 0:00:49.4]} 31... Rxf4+ {[%clk
0:01:19.9]} 32. Kg3 {[%clk 0:00:45.7]} 32... Rf7 {[%clk 0:01:19.9]} 33. Re2
{[%clk 0:00:26.3]} 33... Kg7 {[%clk 0:01:19.3]} 34. c4 {[%clk 0:00:26]} 34...
Rd7 {[%clk 0:01:18.3]} 35. Re3 {[%clk 0:00:25.4]} 35... Kf6 {[%clk 0:01:16.9]}
36. Kf4 {[%clk 0:00:20.1]} 36... h5 {[%clk 0:01:15.7]} 37. a4 {[%clk 0:00:17.8]}
37... Rd1 {[%clk 0:01:12.7]} 38. b4 {[%clk 0:00:17.4]} 38... Rb1 {[%clk
0:01:09.8]} 39. b5 {[%clk 0:00:16.4]} 39... Rb4 {[%clk 0:01:10.3]} 40. Rc3
{[%clk 0:00:13.1]} 40... Rxa4 {[%clk 0:01:10.3]} 41. Ke4 {[%clk 0:00:13.2]}
41... Ra1 {[%clk 0:01:10.2]} 42. Kd5 {[%clk 0:00:14.1]} 42... a6 {[%clk
0:00:58.5]} 43. Kc6 {[%clk 0:00:12.1]} 43... axb5 {[%clk 0:00:58.9]} 44. cxb5
{[%clk 0:00:13]} 44... Ra7 {[%clk 0:00:58.8]} 45. Rc5 {[%clk 0:00:12]} 45... Kg6
{[%clk 0:00:52]} 46. h4 {[%clk 0:00:11.8]} 46... Kh6 {[%clk 0:00:47.1]} 47. Rg5
{[%clk 0:00:11.7]} 47... Ra4 {[%clk 0:00:42.2]} 48. Kxc7 {[%clk 0:00:08.2]}
48... Rxh4 {[%clk 0:00:42.6]} 49. Rc5 {[%clk 0:00:07.9]} 49... Rb4 {[%clk
0:00:42]} 50. b6 {[%clk 0:00:08]} 50... h4 {[%clk 0:00:42.2]} 51. b7 {[%clk
0:00:06.1]} 51... h3 {[%clk 0:00:41.9]} 52. Rc6+ {[%clk 0:00:05.6]} 52... Kg7
{[%clk 0:00:39.2]} 53. Rb6 {[%clk 0:00:06.5]} 53... Rxb6 {[%clk 0:00:38.9]} 54.
Kxb6 {[%clk 0:00:06]} 54... h2 {[%clk 0:00:39.4]} 55. b8=Q {[%clk 0:00:05.7]}
55... h1=Q {[%clk 0:00:39.7]} 56. Qb7+ {[%clk 0:00:06.2]} 56... Qxb7+ {[%clk
0:00:39.6]} 57. Kxb7 {[%clk 0:00:07.1]} 1/2-1/2